[Event "FIDE Women World Blitz 2021"]
[Site "Warsaw"]
[Date "2021.12.30"]
[Round "13.14"]
[White "Stefanova, Antoaneta"]
[Black "Sandu, Mihaela"]
[Result "1-0"]
[ECO "A49"]
[WhiteElo "2475"]
[BlackElo "2244"]
[Annotator "ChessBase"]
[PlyCount "85"]
[EventDate "2021.12.29"]
[EventType "swiss"]
[EventCountry "POL"]
[Tiebreak "Cut1 Buchholz"]
[SourceTitle "playchess.com"]
[Source "ChessBase"]
[SourceQuality "1"]
[TimeControl "180+2"]

1. Nf3 {[%emt 0:00:01]} Nf6 {[%emt 0:00:00]} 2. g3 {[%emt 0:00:01]} g6 {
[%emt 0:00:01]} 3. Bg2 {[%emt 0:00:01]} Bg7 {[%emt 0:00:01]} 4. O-O {[%emt 0:
00:01]} O-O {[%emt 0:00:01]} 5. d4 {[%emt 0:00:01]} d6 {[%emt 0:00:01]} 6. Re1
{[%emt 0:00:02]} Nbd7 {[%emt 0:00:05]} 7. e4 {[%emt 0:00:04]} e5 {[%emt 0:00:
03]} 8. a4 {[%emt 0:00:03]} exd4 {[%emt 0:00:12]} 9. Nxd4 {[%emt 0:00:01]} a6 {
[%emt 0:00:11]} 10. a5 {[%emt 0:00:05]} Re8 {[%emt 0:00:17]} 11. h3 {[%emt 0:
00:03]} Nc5 {[%emt 0:00:07]} 12. Nc3 {[%emt 0:00:02]} Rb8 {[%emt 0:00:06]} 13.
Kh2 {[%emt 0:00:08]} Bd7 {[%emt 0:00:01]} 14. Ra3 {[%emt 0:00:31]} h6 {[%emt 0:
00:13]} 15. f4 {[%emt 0:00:19]} Ne6 {[%emt 0:00:29]} 16. Nf3 {[%emt 0:00:17]}
Nh5 {[%emt 0:00:06]} 17. Be3 {[%emt 0:00:12]} Kh7 {[%emt 0:00:14]} 18. Qd2 {
[%emt 0:00:15]} Bc6 {[%emt 0:00:14]} 19. Raa1 {[%emt 0:00:42]} Nf6 {[%emt 0:00:
12]} 20. Bf2 {[%emt 0:00:06]} Nc5 {[%emt 0:00:08]} 21. Bxc5 {[%emt 0:00:08]}
dxc5 {[%emt 0:00:00]} 22. Qxd8 {[%emt 0:00:05]} Rexd8 {[%emt 0:00:03]} 23. Ne5
{[%emt 0:00:05]} Be8 {[%emt 0:00:01]} 24. Rad1 {[%emt 0:00:04]} Rd4 {[%emt 0:
00:04]} 25. Nf3 {[%emt 0:00:03]} Rb4 {[%emt 0:00:02]} 26. b3 {[%emt 0:00:01]}
Ng4+ {[%emt 0:00:05]} 27. hxg4 {[%emt 0:00:01]} Bxc3 {[%emt 0:00:01]} 28. Re3 {
[%emt 0:00:01]} Bg7 {[%emt 0:00:04]} 29. e5 {[%emt 0:00:06]} c4 {[%emt 0:00:03]
} 30. Re4 {[%emt 0:00:05]} Bc6 {[%emt 0:00:12]} 31. Rxc4 {[%emt 0:00:03]} Rxc4
32. bxc4 {[%emt 0:00:00]} b5 {[%emt 0:00:06]} 33. cxb5 {[%emt 0:00:09]} Bxb5 {
[%emt 0:00:07]} 34. Nd4 {[%emt 0:00:03]} Bc4 {[%emt 0:00:02]} 35. Nc6 {[%emt 0:
00:06]} Rb2 {[%emt 0:00:02]} 36. Be4 {[%emt 0:00:01]} Bb5 {[%emt 0:00:05]} 37.
Nd8 {[%emt 0:00:03]} Kg8 {[%emt 0:00:02]} 38. Kh3 {[%emt 0:00:07]} Bf8 {
[%emt 0:00:01]} 39. e6 {[%emt 0:00:01]} fxe6 {[%emt 0:00:03]} 40. Nxe6 {
[%emt 0:00:01]} Bd6 {[%emt 0:00:03]} 41. Bxg6 {[%emt 0:00:02]} Bd7 {[%emt 0:00:
07]} 42. f5 {[%emt 0:00:02]} Rb4 {[%emt 0:00:09]} 43. Nxc7 {[%emt 0:00:04]} 1-0

[Event "FIDE Women World Blitz 2021"]
[Site "Warsaw"]
[Date "2021.12.30"]
[Round "13.15"]
[White "Balajayeva, Khanim"]
[Black "Dzagnidze, Nana"]
[Result "0-1"]
[ECO "B22"]
[WhiteElo "2369"]
[BlackElo "2524"]
[Annotator "ChessBase"]
[PlyCount "86"]
[EventDate "2021.12.29"]
[EventType "swiss"]
[EventCountry "POL"]
[Tiebreak "Cut1 Buchholz"]
[SourceTitle "playchess.com"]
[Source "ChessBase"]
[SourceQuality "1"]
[TimeControl "180+2"]

1. e4 {[%emt 0:00:01]} c5 {[%emt 0:00:01]} 2. c3 {[%emt 0:00:00]} Nf6 {[%emt 0:
00:02]} 3. e5 {[%emt 0:00:01]} Nd5 {[%emt 0:00:01]} 4. Nf3 {[%emt 0:00:01]} Nc6
{[%emt 0:00:03]} 5. d4 {[%emt 0:00:01]} cxd4 {[%emt 0:00:04]} 6. Bc4 {[%emt 0:
00:01]} Nb6 {[%emt 0:00:08]} 7. Bb3 {[%emt 0:00:00]} d5 {[%emt 0:00:34]} 8.
exd6 {[%emt 0:00:01]} Qxd6 {[%emt 0:00:44]} 9. O-O {[%emt 0:00:02]} Be6 {
[%emt 0:00:12]} 10. Na3 {[%emt 0:00:02]} a6 {[%emt 0:00:13]} 11. Bxe6 {[%emt 0:
00:35]} Qxe6 {[%emt 0:00:01]} 12. cxd4 {[%emt 0:00:01]} Qd7 {[%emt 0:00:06]}
13. Qb3 {[%emt 0:00:10]} Nd5 {[%emt 0:00:02]} 14. Nc4 {[%emt 0:00:03]} e6 {
[%emt 0:00:04]} 15. Nce5 {[%emt 0:00:27]} Nxe5 {[%emt 0:00:02]} 16. Nxe5 {
[%emt 0:00:01]} Qc7 {[%emt 0:00:06]} 17. Qg3 {[%emt 0:00:05]} f6 {[%emt 0:00:
06]} 18. Nd3 {[%emt 0:00:10]} Qxg3 {[%emt 0:00:04]} 19. hxg3 {[%emt 0:00:01]}
Rc8 {[%emt 0:00:14]} 20. Bf4 {[%emt 0:00:07]} Kd7 {[%emt 0:00:10]} 21. Rfe1 {
[%emt 0:00:15]} g5 {[%emt 0:00:08]} 22. Bd2 {[%emt 0:00:08]} Bd6 {[%emt 0:00:
04]} 23. Re2 {[%emt 0:00:07]} h5 {[%emt 0:00:06]} 24. Rae1 {[%emt 0:00:01]}
Rhe8 {[%emt 0:00:03]} 25. a3 {[%emt 0:00:08]} Rc4 {[%emt 0:00:09]} 26. Be3 {
[%emt 0:00:04]} a5 {[%emt 0:00:07]} 27. Rd1 {[%emt 0:00:09]} a4 {[%emt 0:00:02]
} 28. Red2 {[%emt 0:00:40]} b6 {[%emt 0:00:03]} 29. Kf1 {[%emt 0:00:01]} Nxe3+
{[%emt 0:00:02]} 30. fxe3 {[%emt 0:00:00]} Bxg3 {[%emt 0:00:01]} 31. Ke2 {
[%emt 0:00:01]} Rec8 {[%emt 0:00:01]} 32. Rf1 {[%emt 0:00:02]} Ke7 {[%emt 0:00:
02]} 33. Nb4 {[%emt 0:00:05]} Bd6 {[%emt 0:00:01]} 34. Nd3 {[%emt 0:00:04]} h4
{[%emt 0:00:01]} 35. Nf2 {[%emt 0:00:02]} f5 {[%emt 0:00:02]} 36. e4 {[%emt 0:
00:04]} Bf4 {[%emt 0:00:02]} 37. Rdd1 {[%emt 0:00:09]} Rc2+ {[%emt 0:00:01]}
38. Kd3 {[%emt 0:00:01]} Rxb2 {[%emt 0:00:01]} 39. Rb1 {[%emt 0:00:01]} Ra2 {
[%emt 0:00:03]} 40. Rxb6 {[%emt 0:00:07]} Rxa3+ {[%emt 0:00:01]} 41. Ke2 {
[%emt 0:00:01]} Rc2+ {[%emt 0:00:01]} 42. Kd1 {[%emt 0:00:01]} Rd2+ {[%emt 0:
00:01]} 43. Kc1 {[%emt 0:00:04]} Rxf2+ {[%emt 0:00:03]} 0-1

[Event "FIDE Women World Blitz 2021"]
[Site "Warsaw"]
[Date "2021.12.30"]
[Round "13.16"]
[White "Muetsch, Annmarie"]
[Black "Vantika Agrawal"]
[Result "1-0"]
[ECO "B25"]
[WhiteElo "2279"]
[BlackElo "2329"]
[Annotator "NA"]
[PlyCount "86"]
[EventDate "2021.12.29"]
[EventType "swiss"]
[EventCountry "POL"]
[Tiebreak "Cut1 Buchholz"]
[SourceTitle "playchess.com"]
[Source "ChessBase"]
[SourceQuality "1"]
[TimeControl "180+2"]

1. e4 {[%emt 0:12:23]} c5 2. Nc3 {[%emt 0:00:01]} d6 3. g3 {[%emt 0:00:00]} Nc6
{[%emt 0:00:06]} 4. Bg2 {[%emt 0:00:00]} g6 {[%emt 0:00:00]} 5. Nge2 {[%emt 0:
00:00]} Bg7 {[%emt 0:00:01]} 6. O-O {[%emt 0:00:00]} e6 {[%emt 0:00:02]} 7. d3
{[%emt 0:00:00]} Nge7 {[%emt 0:00:01]} 8. h4 {[%emt 0:00:00]} Nd4 {[%emt 0:00:
21]} 9. h5 {[%emt 0:00:00]} O-O {[%emt 0:00:21]} 10. Nf4 {[%emt 0:00:00]} Rb8 {
[%emt 0:00:11]} 11. a4 {[%emt 0:00:00]} b6 {[%emt 0:00:05]} 12. hxg6 {[%emt 0:
00:00]} fxg6 {[%emt 0:00:24]} 13. Be3 {[%emt 0:00:00]} Nec6 {[%emt 0:00:09]}
14. Nh3 {[%emt 0:00:00]} Qe7 {[%emt 0:00:15]} 15. Bg5 {[%emt 0:00:00]} Qf7 {
[%emt 0:00:04]} 16. f4 {[%emt 0:00:00]} Kh8 {[%emt 0:00:14]} 17. Bh4 {[%emt 0:
00:00]} Nb4 {[%emt 0:00:08]} 18. Rf2 {[%emt 0:00:00]} d5 {[%emt 0:00:07]} 19.
Ng5 {[%emt 0:00:00]} Qg8 {[%emt 0:00:05]} 20. e5 {[%emt 0:00:00]} h6 {[%emt 0:
00:05]} 21. Nf3 {[%emt 0:00:00]} Nbc6 {[%emt 0:00:14]} 22. Nb5 {[%emt 0:00:00]}
Nxf3+ {[%emt 0:00:10]} 23. Bxf3 {[%emt 0:00:00]} g5 {[%emt 0:00:05]} 24. fxg5 {
[%emt 0:00:00]} Nxe5 {[%emt 0:00:09]} 25. gxh6 {[%emt 0:00:00]} Bxh6 {[%emt 0:
00:02]} 26. Kg2 {[%emt 0:00:00]} Bb7 {[%emt 0:00:09]} 27. d4 {[%emt 0:00:00]}
Nxf3 {[%emt 0:00:05]} 28. Rxf3 {[%emt 0:00:00]} Qg6 {[%emt 0:00:05]} 29. Be7 {
[%emt 0:00:00]} Rf7 {[%emt 0:00:04]} 30. Bd6 {[%emt 0:00:00]} Rg8 {[%emt 0:00:
04]} 31. Be5+ {[%emt 0:00:00]} Kh7 {[%emt 0:00:03]} 32. Rxf7+ {[%emt 0:00:00]}
Qxf7 {[%emt 0:00:01]} 33. Nd6 {[%emt 0:00:00]} Qe7 {[%emt 0:00:10]} 34. Qh5 {
[%emt 0:00:00]} Rg5 {[%emt 0:00:03]} 35. Qh4 {[%emt 0:00:00]} cxd4 {[%emt 0:00:
02]} 36. Rh1 {[%emt 0:00:00]} Qf8 {[%emt 0:00:06]} 37. Qxg5 {[%emt 0:00:00]} d3
{[%emt 0:00:02]} 38. Nxb7 {[%emt 0:00:00]} dxc2 {[%emt 0:00:01]} 39. Bf4 {
[%emt 0:00:00]} e5 {[%emt 0:00:03]} 40. Rxh6+ {[%emt 0:00:00]} Qxh6 {[%emt 0:
00:02]} 41. Qxh6+ Kg8 {[%emt 0:00:02]} 42. Qg6+ Kf8 43. Bh6+ {[%emt 0:00:02]}
Ke7 1-0

[Event "FIDE Women World Blitz 2021"]
[Site "Warsaw"]
[Date "2021.12.30"]
[Round "13.17"]
[White "Bivol, Alina"]
[Black "Nomin-Erdene, Davaademberel"]
[Result "1-0"]
[ECO "B13"]
[WhiteElo "2377"]
[BlackElo "2188"]
[Annotator "NA"]
[PlyCount "69"]
[EventDate "2021.12.29"]
[EventType "swiss"]
[EventCountry "POL"]
[Tiebreak "Cut1 Buchholz"]
[SourceTitle "playchess.com"]
[Source "ChessBase"]
[SourceQuality "1"]
[TimeControl "180+2"]

1. e4 {[%emt 0:00:01]} c6 {[%emt 0:00:00]} 2. d4 {[%emt 0:00:01]} d5 {[%emt 0:
00:01]} 3. exd5 {[%emt 0:00:03]} cxd5 {[%emt 0:00:00]} 4. Bd3 {[%emt 0:00:01]}
Nc6 {[%emt 0:00:01]} 5. c3 {[%emt 0:00:01]} g6 {[%emt 0:00:01]} 6. Nf3 {
[%emt 0:00:06]} Bg7 {[%emt 0:00:00]} 7. O-O {[%emt 0:00:02]} Nh6 {[%emt 0:00:
01]} 8. Bf4 {[%emt 0:00:06]} O-O {[%emt 0:00:02]} 9. Re1 {[%emt 0:00:13]} f6 {
[%emt 0:00:01]} 10. c4 {[%emt 0:00:09]} e6 {[%emt 0:00:01]} 11. Nc3 {[%emt 0:
00:04]} Nf7 {[%emt 0:00:01]} 12. cxd5 {[%emt 0:00:17]} exd5 {[%emt 0:00:01]}
13. Qb3 {[%emt 0:00:03]} g5 {[%emt 0:01:08]} 14. Bg3 {[%emt 0:00:12]} g4 {
[%emt 0:00:01]} 15. Nd2 {[%emt 0:00:14]} Nxd4 {[%emt 0:00:01]} 16. Qxd5 {
[%emt 0:00:02]} f5 {[%emt 0:00:23]} 17. Bc4 {[%emt 0:00:07]} Qxd5 {[%emt 0:00:
33]} 18. Nxd5 {[%emt 0:00:08]} Nc2 {[%emt 0:00:36]} 19. Nc7 {[%emt 0:00:10]}
Rb8 {[%emt 0:00:04]} 20. Nb5 {[%emt 0:00:29]} Ra8 {[%emt 0:00:20]} 21. Nd6 {
[%emt 0:00:00]} Nxa1 {[%emt 0:00:20]} 22. Rxa1 {[%emt 0:00:00]} Bd7 {[%emt 0:
00:04]} 23. Re1 {[%emt 0:00:15]} Be8 {[%emt 0:00:00]} 24. Re7 {[%emt 0:00:04]}
Rd8 {[%emt 0:00:00]} 25. Nf1 {[%emt 0:00:16]} Bf6 {[%emt 0:00:01]} 26. Rxb7 {
[%emt 0:00:02]} Kg7 {[%emt 0:00:02]} 27. Nxf5+ {[%emt 0:00:03]} Kg6 {[%emt 0:
00:00]} 28. N1e3 {[%emt 0:00:13]} Ne5 {[%emt 0:00:04]} 29. Bxe5 {[%emt 0:00:04]
} Bxe5 {[%emt 0:00:01]} 30. Ne7+ {[%emt 0:00:06]} Kg5 {[%emt 0:00:01]} 31. g3 {
[%emt 0:00:07]} Bd4 {[%emt 0:00:01]} 32. N7d5 {[%emt 0:00:03]} Bxe3 {[%emt 0:
00:03]} 33. Nxe3 {[%emt 0:00:03]} Rd2 {[%emt 0:00:02]} 34. Rg7+ {[%emt 0:00:07]
} Kh6 {[%emt 0:00:01]} 35. Rxg4 {[%emt 0:00:02]} 1-0

[Event "FIDE Women World Blitz 2021"]
[Site "Warsaw"]
[Date "2021.12.30"]
[Round "13.18"]
[White "Muzychuk, Mariya"]
[Black "Garcia Martin, Marta"]
[Result "1-0"]
[ECO "C47"]
[WhiteElo "2536"]
[BlackElo "2194"]
[Annotator "ChessBase"]
[PlyCount "41"]
[EventDate "2021.12.29"]
[EventType "swiss"]
[EventCountry "POL"]
[Tiebreak "Cut1 Buchholz"]
[SourceTitle "playchess.com"]
[Source "ChessBase"]
[SourceQuality "1"]
[TimeControl "180+2"]

1. e4 {[%emt 0:00:00]} e5 {[%emt 0:00:00]} 2. Nf3 {[%emt 0:00:01]} Nc6 {
[%emt 0:00:01]} 3. Nc3 {[%emt 0:00:01]} Nf6 {[%emt 0:00:03]} 4. d4 exd4 {
[%emt 0:00:03]} 5. Nxd4 {[%emt 0:00:01]} Bc5 {[%emt 0:00:12]} 6. Be3 {[%emt 0:
00:12]} Bb6 {[%emt 0:00:01]} 7. Nf5 {[%emt 0:00:11]} O-O {[%emt 0:00:07]} 8.
Bxb6 {[%emt 0:00:24]} axb6 {[%emt 0:00:01]} 9. Bc4 {[%emt 0:00:06]} Re8 {
[%emt 0:00:39]} 10. O-O {[%emt 0:00:05]} d6 {[%emt 0:00:13]} 11. Ng3 {[%emt 0:
00:15]} Be6 {[%emt 0:00:33]} 12. Bxe6 Rxe6 {[%emt 0:00:01]} 13. f4 {[%emt 0:00:
11]} b5 {[%emt 0:00:23]} 14. a3 {[%emt 0:00:17]} Qd7 {[%emt 0:00:23]} 15. Qd2 {
[%emt 0:00:07]} Na5 {[%emt 0:00:09]} 16. b3 {[%emt 0:00:05]} Qc6 {[%emt 0:00:
17]} 17. Qd3 {[%emt 0:00:12]} b4 {[%emt 0:00:20]} 18. axb4 {[%emt 0:00:10]}
Qb6+ {[%emt 0:00:00]} 19. Kh1 {[%emt 0:00:01]} Qxb4 {[%emt 0:00:01]} 20. Ra4 {
[%emt 0:00:05]} Qb6 {[%emt 0:00:11]} 21. b4 {[%emt 0:00:03]} 1-0

[Event "FIDE Women World Blitz 2021"]
[Site "Warsaw"]
[Date "2021.12.30"]
[Round "13.19"]
[White "Maltsevskaya, Aleksandra"]
[Black "Efroimski, Marsel"]
[Result "1-0"]
[ECO "B55"]
[WhiteElo "2411"]
[BlackElo "2419"]
[Annotator "NA"]
[PlyCount "81"]
[EventDate "2021.12.29"]
[EventType "swiss"]
[EventCountry "POL"]
[Tiebreak "Cut1 Buchholz"]
[SourceTitle "playchess.com"]
[Source "ChessBase"]
[SourceQuality "1"]
[TimeControl "180+2"]

1. e4 {[%emt 0:00:01]} c5 {[%emt 0:00:01]} 2. Nf3 {[%emt 0:00:01]} d6 3. d4 {
[%emt 0:00:01]} cxd4 {[%emt 0:00:01]} 4. Nxd4 {[%emt 0:00:01]} Nf6 {[%emt 0:00:
00]} 5. f3 {[%emt 0:00:02]} e5 {[%emt 0:00:02]} 6. Nb3 {[%emt 0:00:00]} Nc6 {
[%emt 0:00:06]} 7. c4 {[%emt 0:00:02]} Qb6 {[%emt 0:00:23]} 8. Nc3 {[%emt 0:00:
04]} Be6 {[%emt 0:00:18]} 9. Bg5 {[%emt 0:01:03]} Be7 {[%emt 0:01:22]} 10. Qd2
{[%emt 0:00:01]} O-O {[%emt 0:00:08]} 11. Be3 {[%emt 0:00:03]} Qc7 {[%emt 0:00:
02]} 12. Be2 {[%emt 0:00:01]} a6 {[%emt 0:00:23]} 13. O-O {[%emt 0:00:04]} Nd7
{[%emt 0:00:13]} 14. Rac1 {[%emt 0:00:20]} Nc5 {[%emt 0:00:02]} 15. Nd5 {
[%emt 0:00:01]} Qd8 {[%emt 0:00:06]} 16. Rfd1 {[%emt 0:00:07]} Bxd5 {[%emt 0:
00:08]} 17. cxd5 {[%emt 0:00:12]} Nxb3 {[%emt 0:00:06]} 18. axb3 {[%emt 0:00:
01]} Nb8 {[%emt 0:00:01]} 19. Qb4 {[%emt 0:00:02]} b5 {[%emt 0:00:01]} 20. Ra1
{[%emt 0:00:08]} Nd7 {[%emt 0:00:01]} 21. Qa5 {[%emt 0:00:19]} Bg5 {[%emt 0:00:
01]} 22. Bf2 {[%emt 0:00:06]} Qf6 {[%emt 0:00:10]} 23. Qc7 {[%emt 0:00:22]}
Rfd8 {[%emt 0:00:07]} 24. Bd3 {[%emt 0:00:26]} Qh6 {[%emt 0:00:01]} 25. Re1 {
[%emt 0:00:08]} Nf6 {[%emt 0:00:01]} 26. Rxa6 {[%emt 0:00:05]} Nh5 {[%emt 0:00:
04]} 27. Rxa8 {[%emt 0:00:01]} Rxa8 {[%emt 0:00:00]} 28. g3 {[%emt 0:00:03]}
Bf6 {[%emt 0:00:05]} 29. Qxd6 {[%emt 0:00:04]} Qd2 {[%emt 0:00:01]} 30. Bf1 {
[%emt 0:00:03]} h6 {[%emt 0:00:02]} 31. Qc6 {[%emt 0:00:02]} Ra2 {[%emt 0:00:
01]} 32. Qc1 {[%emt 0:00:01]} Qb4 {[%emt 0:00:02]} 33. Qc3 {[%emt 0:00:02]} Qe7
{[%emt 0:00:02]} 34. Bxb5 {[%emt 0:00:05]} g5 {[%emt 0:00:05]} 35. Be2 {
[%emt 0:00:02]} Ng7 {[%emt 0:00:01]} 36. b4 {[%emt 0:00:02]} Qb7 {[%emt 0:00:
02]} 37. b5 {[%emt 0:00:01]} h5 {[%emt 0:00:02]} 38. Qc6 {[%emt 0:00:02]} Qe7 {
[%emt 0:00:02]} 39. d6 {[%emt 0:00:01]} Qe6 {[%emt 0:00:03]} 40. Bc4 {[%emt 0:
00:00]} Qe8 {[%emt 0:00:03]} 41. Qxe8+ {[%emt 0:00:03]} 1-0

[Event "FIDE Women World Blitz 2021"]
[Site "Warsaw"]
[Date "2021.12.30"]
[Round "13.20"]
[White "Batsiashvili, Nino"]
[Black "Kamalidenova, Meruert"]
[Result "0-1"]
[ECO "A16"]
[WhiteElo "2491"]
[BlackElo "2339"]
[Annotator "ChessBase"]
[PlyCount "62"]
[EventDate "2021.12.29"]
[EventType "swiss"]
[EventCountry "POL"]
[Tiebreak "Cut1 Buchholz"]
[SourceTitle "playchess.com"]
[Source "ChessBase"]
[SourceQuality "1"]
[TimeControl "180+2"]

1. c4 {[%emt 0:00:01]} Nf6 {[%emt 0:00:01]} 2. Nf3 {[%emt 0:00:02]} g6 {
[%emt 0:00:01]} 3. Nc3 {[%emt 0:00:01]} Bg7 {[%emt 0:00:02]} 4. g3 {[%emt 0:00:
07]} O-O {[%emt 0:00:04]} 5. Bg2 {[%emt 0:00:02]} c6 {[%emt 0:00:02]} 6. e4 {
[%emt 0:00:20]} d5 {[%emt 0:00:05]} 7. e5 {[%emt 0:00:19]} Ne4 {[%emt 0:00:03]}
8. cxd5 {[%emt 0:00:10]} cxd5 {[%emt 0:00:09]} 9. d3 {[%emt 0:00:03]} Nxc3 {
[%emt 0:00:08]} 10. bxc3 {[%emt 0:00:00]} Qc7 {[%emt 0:00:05]} 11. O-O {
[%emt 0:00:40]} Qxc3 {[%emt 0:00:02]} 12. Bg5 {[%emt 0:00:02]} Nc6 {[%emt 0:00:
09]} 13. h3 {[%emt 0:00:33]} Bf5 {[%emt 0:00:06]} 14. d4 {[%emt 0:00:09]} Be4 {
[%emt 0:00:02]} 15. Be3 {[%emt 0:00:14]} Rfc8 {[%emt 0:00:07]} 16. Qa4 {
[%emt 0:00:05]} Qb4 {[%emt 0:00:10]} 17. Qd1 {[%emt 0:00:08]} Na5 {[%emt 0:00:
09]} 18. Ng5 {[%emt 0:00:03]} Bxg2 19. Kxg2 {[%emt 0:00:01]} h6 {[%emt 0:00:14]
} 20. Nf3 {[%emt 0:00:29]} Nc4 {[%emt 0:00:01]} 21. Rb1 {[%emt 0:00:01]} Qa3 {
[%emt 0:00:07]} 22. Qe2 {[%emt 0:00:04]} Nxe3+ 23. fxe3 {[%emt 0:00:01]} b6 {
[%emt 0:00:09]} 24. Rb3 {[%emt 0:00:02]} Qa4 {[%emt 0:00:03]} 25. Nh4 {[%emt 0:
00:05]} Qc6 {[%emt 0:00:04]} 26. Qf3 {[%emt 0:00:02]} Qe6 {[%emt 0:00:02]} 27.
Kh1 {[%emt 0:00:02]} Qxh3+ {[%emt 0:00:03]} 28. Kg1 {[%emt 0:00:01]} Qe6 {
[%emt 0:00:04]} 29. Ng2 {[%emt 0:00:01]} Rc2 {[%emt 0:00:04]} 30. Nf4 {[%emt 0:
00:02]} Qf5 {[%emt 0:00:05]} 31. Qxd5 {[%emt 0:00:03]} Rac8 {[%emt 0:00:02]}
0-1

[Event "FIDE Women World Blitz 2021"]
[Site "Warsaw"]
[Date "2021.12.30"]
[Round "13.21"]
[White "Garifullina, Leya"]
[Black "Padmini, Rout"]
[Result "1-0"]
[ECO "B27"]
[WhiteElo "2416"]
[BlackElo "2353"]
[Annotator "NA"]
[PlyCount "70"]
[EventDate "2021.12.29"]
[EventType "swiss"]
[EventCountry "POL"]
[Tiebreak "Cut1 Buchholz"]
[SourceTitle "playchess.com"]
[Source "ChessBase"]
[SourceQuality "1"]
[TimeControl "180+2"]

1. e4 {[%emt 0:00:02]} c5 {[%emt 0:00:01]} 2. Nf3 {[%emt 0:00:02]} g6 {[%emt 0:
00:01]} 3. d4 {[%emt 0:00:02]} cxd4 {[%emt 0:00:01]} 4. Qxd4 {[%emt 0:00:02]}
Nf6 {[%emt 0:00:01]} 5. Nc3 {[%emt 0:00:02]} Nc6 {[%emt 0:00:02]} 6. Qa4 {
[%emt 0:00:02]} Bg7 {[%emt 0:00:03]} 7. e5 {[%emt 0:00:08]} Ng8 {[%emt 0:00:04]
} 8. Bf4 {[%emt 0:00:07]} Nh6 {[%emt 0:00:21]} 9. h3 {[%emt 0:00:20]} O-O {
[%emt 0:00:11]} 10. O-O-O {[%emt 0:00:05]} Qb6 {[%emt 0:00:48]} 11. Nd5 {
[%emt 0:00:37]} Qd8 {[%emt 0:00:30]} 12. Bb5 {[%emt 0:00:12]} a6 {[%emt 0:00:
17]} 13. Qa3 {[%emt 0:00:24]} Re8 {[%emt 0:00:29]} 14. Bg5 {[%emt 0:00:20]} Kf8
{[%emt 0:00:15]} 15. Be3 {[%emt 0:00:27]} axb5 {[%emt 0:00:21]} 16. Qxa8 {
[%emt 0:00:02]} d6 {[%emt 0:00:01]} 17. Qa3 {[%emt 0:00:09]} Nf5 {[%emt 0:00:
05]} 18. Bb6 {[%emt 0:00:01]} Qd7 {[%emt 0:00:01]} 19. g4 {[%emt 0:00:03]} Nh6
{[%emt 0:00:02]} 20. Nc7 {[%emt 0:00:04]} Nxe5 {[%emt 0:00:02]} 21. Nxe5 {
[%emt 0:00:02]} Bxe5 {[%emt 0:00:01]} 22. Nxe8 Qxe8 {[%emt 0:00:01]} 23. Rhe1 {
[%emt 0:00:06]} Ng8 {[%emt 0:00:03]} 24. Rxe5 {[%emt 0:00:02]} dxe5 {[%emt 0:
00:01]} 25. Rd8 {[%emt 0:00:02]} Nf6 {[%emt 0:00:04]} 26. Rxe8+ {[%emt 0:00:01]
} Kxe8 {[%emt 0:00:01]} 27. Qb3 {[%emt 0:00:03]} Bd7 {[%emt 0:00:02]} 28. Qc3 {
[%emt 0:00:02]} e4 {[%emt 0:00:02]} 29. Qe5 {[%emt 0:00:02]} Bc6 {[%emt 0:00:
03]} 30. Bc5 {[%emt 0:00:05]} Nd5 {[%emt 0:00:03]} 31. Qxe4 {[%emt 0:00:03]}
Kd7 {[%emt 0:00:01]} 32. Qe5 {[%emt 0:00:02]} f6 {[%emt 0:00:02]} 33. Qe1 {
[%emt 0:00:02]} e5 {[%emt 0:00:02]} 34. b3 {[%emt 0:00:01]} Nf4 {[%emt 0:00:03]
} 35. Qd2+ {[%emt 0:00:01]} Kc8 {[%emt 0:00:03]} 1-0